fUSD/lending_fUSD_20260624
["ID","MTS","AMOUNT","RATE_DAILY","PERIOD"]
[426298688,1782257451000,-695.39793187,0.00022277,2]
[426298673,1782257451000,-200.0,0.00022156,2]
[426298671,1782257451000,-545.01804589,0.00022156,2]
[426298677,1782257451000,-4117.78799788,0.00022222,2]
[426298674,1782257451000,-198.87217539,0.00022156,2]
[426298678,1782257451000,-150.0,0.00022239,2]
[426298676,1782257451000,-10005.87988317,0.000222,2]
[426298679,1782257451000,-150.0,0.00022239,2]
[426298680,1782257451000,-150.0,0.00022239,2]
[426298681,1782257451000,-150.0,0.00022239,2]
[426298686,1782257451000,-209.40437684,0.00022276,2]
[426298683,1782257451000,-150.0,0.00022239,2]
[426298675,1782257451000,-500.0,0.00022192,2]
[426298733,1782257452000,-871.06772465,0.00022826,2]
[426298742,1782257452000,-1021.58590871,0.00022826,2]
[426298746,1782257452000,-151.0,0.00022826,2]
[426298749,1782257452000,-500.0,0.00022857,2]
[426298748,1782257452000,-200.0,0.00022828,2]
[426298739,1782257452000,-4888.88543764,0.00022826,2]
[426298740,1782257452000,-2405.55389863,0.00022826,2]
[426298736,1782257452000,-197.08549854,0.00022826,2]
[426298743,1782257452000,-242.15909246,0.00022826,2]
[426298741,1782257452000,-11046.30350254,0.00022826,2]
[426298745,1782257452000,-242.15909246,0.00022826,2]
[426298758,1782257452000,-2741.0,0.00023,2]
[426298751,1782257452000,-500.0,0.000229,8]
[426298750,1782257452000,-10005.87988317,0.000229,2]
[426298761,1782257452000,-500.0,0.00023,3]
[426298753,1782257452000,-350.0,0.00022966,2]
[426298754,1782257452000,-1294.26276107,0.00023,2]
[426298752,1782257452000,-785.0,0.00022933,2]
[426298755,1782257452000,-429.0,0.00023,2]
[426298760,1782257452000,-304.0,0.00023,2]
[426298757,1782257452000,-1840.0,0.00023,2]
[426298756,1782257452000,-527.0,0.00023,2]
[426298759,1782257452000,-359.0,0.00023,2]
[426298737,1782257452000,-217.15233878,0.00022826,2]
[426298744,1782257452000,-242.15909246,0.00022826,2]
[426298734,1782257452000,-242.15909246,0.00022826,2]
[426298712,1782257452000,-1204.7,0.00022441,7]
[426298735,1782257452000,-151.0,0.00022826,2]
[426298709,1782257452000,-200.0,0.00022378,2]
[426298708,1782257452000,-200.0,0.00022378,2]
[426298707,1782257452000,-1138.6,0.00022353,2]
[426298713,1782257452000,-350.0,0.00022454,3]
[426298711,1782257452000,-631.0,0.00022424,4]
[426298715,1782257452000,-393.23,0.00022466,2]
[426298710,1782257452000,-10005.87988317,0.000224,2]
[426298714,1782257452000,-437.23,0.00022466,2]
[426298716,1782257452000,-589.83,0.00022466,2]
[426298719,1782257452000,-50000.0,0.000225,5]
[426298725,1782257452000,-785.0,0.000226,2]
[426298720,1782257452000,-1294.26276107,0.000225,2]
[426298722,1782257452000,-150.0,0.0002254,2]
[426298723,1782257452000,-4888.88543764,0.00022552,2]
[426298717,1782257452000,-926.73,0.00022466,2]
[426298726,1782257452000,-200.0,0.00022602,2]
[426298721,1782257452000,-182.26888893,0.00022538,14]
[426298718,1782257452000,-50000.0,0.000225,5]
[426298727,1782257452000,-200.0,0.00022602,2]
[426298724,1782257452000,-403.22,0.000226,14]
[426298729,1782257452000,-10005.87988317,0.000227,2]
[426298728,1782257452000,-1294.26276107,0.000227,2]
[426298730,1782257452000,-216.39158367,0.000227,7]
[426298731,1782257452000,-216.39158367,0.000228,7]
[426298732,1782257452000,-670.4430068,0.00022826,2]
[426298738,1782257452000,-200.0,0.00022826,2]
[426298762,1782257452000,-1370.0,0.00023,2]
[426298747,1782257452000,-200.0,0.00022828,2]
[426298763,1782257452000,-500.0,0.00023,3]
[426298794,1782257452000,-11455.01673214,0.00023374,2]
[426298787,1782257452000,-871.06772465,0.00023374,2]
[426298795,1782257452000,-2494.55939288,0.00023374,2]
[426298796,1782257452000,-1021.58590871,0.00023374,2]
[426298799,1782257452000,-251.11897888,0.00023374,2]
[426298798,1782257452000,-251.11897888,0.00023374,2]
[426298801,1782257452000,-165.1,0.00023425,2]
[426298800,1782257452000,-151.0,0.00023374,2]
[426298803,1782257452000,-50000.0,0.000235,7]
[426298804,1782257452000,-50000.0,0.000235,7]
[426298802,1782257452000,-1113.58255414,0.00023486,2]
[426298806,1782257452000,-500.0,0.00023543,2]
[426298805,1782257452000,-50000.0,0.000235,7]
[426298807,1782257452000,-4000.0,0.00023543,8]
[426298809,1782257452000,-10005.87988317,0.000236,2]
[426298810,1782257452000,-631.0,0.00023636,5]
[426298808,1782257452000,-785.0,0.00023598,2]
[426298811,1782257452000,-206.51495448,0.00023645,2]
[426298814,1782257452000,-383.0,0.0002373,2]
[426298812,1782257452000,-4888.88543764,0.00023648,2]
[426298813,1782257452000,-150.0,0.00023667,2]
[426298817,1782257452000,-1229.0,0.0002373,2]
[426298816,1782257452000,-1277.0,0.0002373,2]
[426298818,1782257452000,-6083.0,0.0002373,2]
[426298815,1782257452000,-1361.0,0.0002373,2]
[426298797,1782257452000,-251.11897888,0.00023374,2]
[426298793,1782257452000,-4888.88543764,0.00023374,2]
[426298765,1782257452000,-402.0,0.00023,2]
[426298788,1782257452000,-251.11897888,0.00023374,2]
[426298764,1782257452000,-406.0,0.00023,2]
[426298766,1782257452000,-500.0,0.00023,3]
[426298767,1782257452000,-1968.0,0.00023,2]
[426298773,1782257452000,-500.0,0.00023,3]
[426298768,1782257452000,-500.0,0.00023,3]
[426298771,1782257452000,-183.0,0.00023,2]
[426298769,1782257452000,-154.0,0.00023,2]
[426298790,1782257452000,-197.08549854,0.00023374,2]
[426298770,1782257452000,-834.0,0.00023,2]
[426298775,1782257452000,-500.0,0.00023,3]
[426298774,1782257452000,-500.0,0.00023,3]
[426298785,1782257452000,-206.0,0.00023354,2]
[426298772,1782257452000,-500.0,0.00023,3]
[426298780,1782257452000,-11190.86,0.00023214,7]
[426298776,1782257452000,-631.0,0.0002303,4]
[426298792,1782257452000,-200.0,0.00023374,2]
[426298789,1782257452000,-151.0,0.00023374,2]
[426298786,1782257452000,-684.3557816,0.00023356,2]
[426298784,1782257452000,-10005.87988317,0.000233,2]
[426298791,1782257452000,-225.18697532,0.00023374,2]
[426298781,1782257452000,-150.0,0.0002326,21]
[426298783,1782257452000,-1166.25,0.00023288,7]
[426298778,1782257452000,-10005.87988317,0.000231,2]
[426298779,1782257452000,-264.93139043,0.00023188,2]
[426298777,1782257452000,-4888.88543764,0.000231,2]
[426298782,1782257452000,-785.0,0.00023265,2]
[426298858,1782257453000,-3775.01142214,0.0002421,2]
[426298856,1782257453000,-183.0,0.00024,2]
[426298855,1782257453000,-834.0,0.00024,2]
[426298857,1782257453000,-4888.88543764,0.00024196,2]
[426298853,1782257453000,-1968.0,0.00024,2]
[426298852,1782257453000,-402.0,0.00024,2]
[426298850,1782257453000,-1370.0,0.00024,2]
[426298851,1782257453000,-406.0,0.00024,2]
[426298849,1782257453000,-304.0,0.00024,2]
[426298854,1782257453000,-166.94882961,0.00024,2]
[426298859,1782257453000,-631.0,0.00024242,6]
[426298869,1782257453000,-172.17031151,0.00024384,2]
[426298861,1782257453000,-10837.33036436,0.0002429,7]
[426298862,1782257453000,-10005.87988317,0.000243,2]
[426298867,1782257453000,-500.0,0.00024384,2]
[426298873,1782257453000,-500.0,0.00024384,2]
[426298866,1782257453000,-500.0,0.00024384,2]
[426298863,1782257453000,-500.0,0.00024316,2]
[426298865,1782257453000,-1138.6,0.00024324,2]
[426298871,1782257453000,-500.0,0.00024384,2]
[426298864,1782257453000,-2000.0,0.00024316,2]
[426298870,1782257453000,-500.0,0.00024384,2]
[426298868,1782257453000,-500.0,0.00024384,2]
[426298848,1782257453000,-359.0,0.00024,2]
[426298860,1782257453000,-500.0,0.00024249,2]
[426298844,1782257453000,-429.0,0.00024,2]
[426298833,1782257453000,-165.58568558,0.00023922,2]
[426298846,1782257453000,-1840.0,0.00024,2]
[426298872,1782257453000,-500.0,0.00024384,2]
[426298820,1782257453000,-157.301191,0.000238,2]
[426298829,1782257453000,-4888.88543764,0.00023922,2]
[426298828,1782257453000,-200.0,0.00023922,2]
[426298826,1782257453000,-197.08549854,0.00023922,2]
[426298825,1782257453000,-260.4103811,0.00023922,2]
[426298821,1782257453000,-458.41512065,0.00023908,2]
[426298822,1782257453000,-150.0,0.00023908,2]
[426298823,1782257453000,-871.06772465,0.00023922,2]
[426298827,1782257453000,-233.5188934,0.00023922,2]
[426298824,1782257453000,-151.0,0.00023922,2]
[426298830,1782257453000,-11878.85235123,0.00023922,2]
[426298831,1782257453000,-2586.85809042,0.00023922,2]
[426298832,1782257453000,-1021.58590871,0.00023922,2]
[426298838,1782257453000,-598.0,0.00023938,7]
[426298834,1782257453000,-209.9340037,0.00023922,2]
[426298836,1782257453000,-151.0,0.00023922,2]
[426298837,1782257453000,-785.0,0.0002393,2]
[426298835,1782257453000,-260.4103811,0.00023922,2]
[426298840,1782257453000,-22624.10789826,0.00024,2]
[426298839,1782257453000,-76651.80117618,0.00024,2]
[426298845,1782257453000,-527.0,0.00024,2]
[426298841,1782257453000,-500.0,0.00024,2]
[426298843,1782257453000,-10005.87988317,0.00024,2]
[426298842,1782257453000,-8224.43,0.00024,7]
[426298847,1782257453000,-2741.0,0.00024,2]
[426298819,1782257453000,-10005.87988317,0.000238,2]
[426298874,1782257453000,-500.0,0.00024384,2]
[426298883,1782257453000,-500.0,0.00024384,2]
[426298907,1782257453000,-171.22,0.00024566,2]
[426298909,1782257453000,-151.0,0.00024571,2]
[426298908,1782257453000,-151.0,0.00024571,2]
[426298910,1782257453000,-151.0,0.00024571,2]
[426298914,1782257453000,-220.547498,0.00024657,2]
[426298911,1782257453000,-151.39,0.00024588,2]
[426298916,1782257453000,-220.547498,0.00024657,2]
[426298915,1782257453000,-220.547498,0.00024657,2]
[426298912,1782257453000,-2100.2,0.00024613,7]
[426298913,1782257453000,-220.547498,0.00024657,2]
[426298917,1782257453000,-241.07,0.00024658,8]
[426298920,1782257453000,-151.0,0.00024658,2]
[426298919,1782257453000,-151.0,0.00024658,2]
[426298922,1782257453000,-151.0,0.00024658,2]
[426298924,1782257453000,-151.0,0.00024658,2]
[426298921,1782257453000,-151.0,0.00024658,2]
[426298925,1782257453000,-151.0,0.00024658,2]
[426298923,1782257453000,-151.0,0.00024658,2]
[426298929,1782257453000,-151.0,0.00024658,2]
[426298928,1782257453000,-151.0,0.00024658,2]
[426298930,1782257453000,-151.0,0.00024658,2]
[426298931,1782257453000,-151.0,0.00024658,2]
[426298927,1782257453000,-151.0,0.00024658,2]
[426298926,1782257453000,-151.0,0.00024658,2]
[426298876,1782257453000,-500.0,0.00024384,2]
[426298906,1782257453000,-10005.87988317,0.000245,2]
[426298904,1782257453000,-408.54758177,0.0002447,2]
[426298918,1782257453000,-1000.0,0.00024658,2]
[426298903,1782257453000,-151.0,0.0002447,2]
[426298905,1782257453000,-152.0,0.00024493,3]
[426298879,1782257453000,-289.69334634,0.00024384,2]
[426298881,1782257453000,-500.0,0.00024384,2]
[426298875,1782257453000,-500.0,0.00024384,2]
[426298886,1782257453000,-500.0,0.00024384,2]
[426298878,1782257453000,-500.0,0.00024384,2]
[426298882,1782257453000,-500.0,0.00024384,2]
[426298885,1782257453000,-572.59644785,0.00024384,2]
[426298884,1782257453000,-500.0,0.00024384,2]
[426298880,1782257453000,-500.0,0.00024384,2]
[426298887,1782257453000,-500.0,0.00024384,2]
[426298889,1782257453000,-500.0,0.00024384,2]
[426298890,1782257453000,-500.0,0.00024384,2]
[426298877,1782257453000,-500.0,0.00024384,2]
[426298888,1782257453000,-500.0,0.00024384,2]
[426298893,1782257453000,-151.0,0.0002447,2]
[426298902,1782257453000,-270.0455652,0.0002447,2]
[426298899,1782257453000,-2947.10875163,0.0002447,2]
[426298900,1782257453000,-2682.57183977,0.0002447,2]
[426298895,1782257453000,-197.08549854,0.0002447,2]
[426298897,1782257453000,-200.0,0.0002447,2]
[426298901,1782257453000,-1021.58590871,0.0002447,2]
[426298896,1782257453000,-242.15909246,0.0002447,2]
[426298894,1782257453000,-270.0455652,0.0002447,2]
[426298891,1782257453000,-285.0,0.00024421,2]
[426298892,1782257453000,-871.06772465,0.0002447,2]
[426298898,1782257453000,-4888.88543764,0.0002447,2]
[426298971,1782257454000,-150.0,0.00024658,2]
[426298969,1782257454000,-150.0,0.00024658,2]
[426298980,1782257454000,-150.0,0.00024658,2]
[426298964,1782257454000,-187.792673,0.00024658,2]
[426298970,1782257454000,-150.0,0.00024658,2]
[426298961,1782257454000,-187.792673,0.00024658,2]
[426298963,1782257454000,-187.792673,0.00024658,2]
[426298966,1782257454000,-187.792673,0.00024658,2]
[426298965,1782257454000,-187.792673,0.00024658,2]
[426298973,1782257454000,-150.0,0.00024658,2]
[426298967,1782257454000,-187.792673,0.00024658,2]
[426298972,1782257454000,-150.0,0.00024658,2]
[426298983,1782257454000,-150.0,0.00024658,2]
[426298977,1782257454000,-150.0,0.00024658,2]
[426298979,1782257454000,-150.0,0.00024658,2]
[426298974,1782257454000,-150.0,0.00024658,2]
[426298976,1782257454000,-150.0,0.00024658,2]
[426298978,1782257454000,-150.0,0.00024658,2]
[426298986,1782257454000,-150.0,0.00024658,2]
[426298982,1782257454000,-150.0,0.00024658,2]
[426298984,1782257454000,-150.0,0.00024658,2]
[426298987,1782257454000,-150.0,0.00024658,2]
[426298989,1782257454000,-500.0,0.00024658,2]
[426298990,1782257454000,-500.0,0.00024658,2]
[426298962,1782257454000,-187.792673,0.00024658,2]
[426298975,1782257454000,-150.0,0.00024658,2]
[426298959,1782257454000,-187.792673,0.00024658,2]
[426298933,1782257454000,-198.938165,0.00024658,2]
[426298981,1782257454000,-150.0,0.00024658,2]
[426298932,1782257454000,-151.0,0.00024658,2]
[426298936,1782257454000,-151.0,0.00024658,2]
[426298940,1782257454000,-151.0,0.00024658,2]
[426298935,1782257454000,-151.0,0.00024658,2]
[426298937,1782257454000,-151.0,0.00024658,2]
[426298934,1782257454000,-1475.08,0.00024658,2]
[426298943,1782257454000,-151.0,0.00024658,2]
[426298939,1782257454000,-151.0,0.00024658,2]
[426298941,1782257454000,-151.0,0.00024658,2]
[426298938,1782257454000,-151.0,0.00024658,2]
[426298942,1782257454000,-151.0,0.00024658,2]
[426298944,1782257454000,-275.934024,0.00024658,2]
[426298960,1782257454000,-187.792673,0.00024658,2]
[426298946,1782257454000,-151.0,0.00024658,2]
[426298945,1782257454000,-151.0,0.00024658,2]
[426298948,1782257454000,-151.0,0.00024658,2]
[426298951,1782257454000,-151.0,0.00024658,2]
[426298952,1782257454000,-295.660234,0.00024658,2]
[426298956,1782257454000,-187.792673,0.00024658,2]
[426298950,1782257454000,-151.0,0.00024658,2]
[426298953,1782257454000,-187.792673,0.00024658,2]
[426298949,1782257454000,-151.0,0.00024658,2]
[426298955,1782257454000,-187.792673,0.00024658,2]
[426298954,1782257454000,-187.792673,0.00024658,2]
[426298958,1782257454000,-187.792673,0.00024658,2]
[426298968,1782257454000,-187.792673,0.00024658,2]
[426298947,1782257454000,-151.0,0.00024658,2]
[426298985,1782257454000,-150.0,0.00024658,2]
[426298957,1782257454000,-187.792673,0.00024658,2]
[426298991,1782257454000,-500.0,0.00024658,2]
[426299026,1782257454000,-150.0,0.00024658,2]
[426299025,1782257454000,-150.0,0.00024658,2]
[426299018,1782257454000,-150.0,0.00024658,2]
[426299023,1782257454000,-150.0,0.00024658,2]
[426299017,1782257454000,-150.0,0.00024658,2]
[426299030,1782257454000,-150.0,0.00024658,2]
[426299031,1782257454000,-150.0,0.00024658,2]
[426299027,1782257454000,-150.0,0.00024658,2]
[426299034,1782257454000,-150.0,0.00024658,2]
[426299032,1782257454000,-150.0,0.00024658,2]
[426299028,1782257454000,-150.0,0.00024658,2]
[426299029,1782257454000,-150.0,0.00024658,2]
[426299024,1782257454000,-150.0,0.00024658,2]
[426299036,1782257454000,-150.0,0.00024658,2]
[426299033,1782257454000,-150.0,0.00024658,2]
[426299037,1782257454000,-150.0,0.00024658,2]
[426299047,1782257454000,-150.0,0.00024658,2]
[426299046,1782257454000,-269.249007,0.00024658,2]
[426299041,1782257454000,-150.0,0.00024658,2]
[426299044,1782257454000,-269.249007,0.00024658,2]
[426299040,1782257454000,-150.0,0.00024658,2]
[426299039,1782257454000,-150.0,0.00024658,2]
[426299038,1782257454000,-150.0,0.00024658,2]
[426299045,1782257454000,-269.249007,0.00024658,2]
[426299043,1782257454000,-150.0,0.00024658,2]
[426299042,1782257454000,-269.249007,0.00024658,2]
[426299035,1782257454000,-150.0,0.00024658,2]
[426299022,1782257454000,-150.0,0.00024658,2]
[426298988,1782257454000,-150.0,0.00024658,2]
[426299021,1782257454000,-150.0,0.00024658,2]
[426299003,1782257454000,-150.0,0.00024658,2]
[426298996,1782257454000,-150.0,0.00024658,2]
[426298999,1782257454000,-150.0,0.00024658,2]
[426298992,1782257454000,-500.0,0.00024658,2]
[426298993,1782257454000,-500.0,0.00024658,2]
[426298995,1782257454000,-150.0,0.00024658,2]
[426298997,1782257454000,-150.0,0.00024658,2]
[426299019,1782257454000,-150.0,0.00024658,2]
[426299000,1782257454000,-150.0,0.00024658,2]
[426299002,1782257454000,-150.0,0.00024658,2]
[426299001,1782257454000,-150.0,0.00024658,2]
[426298998,1782257454000,-150.0,0.00024658,2]
[426299007,1782257454000,-150.0,0.00024658,2]
[426298994,1782257454000,-168.70889252,0.00024658,2]
[426299006,1782257454000,-150.0,0.00024658,2]
[426299004,1782257454000,-150.0,0.00024658,2]
[426299015,1782257454000,-150.0,0.00024658,2]
[426299020,1782257454000,-150.0,0.00024658,2]
[426299016,1782257454000,-150.0,0.00024658,2]
[426299014,1782257454000,-150.0,0.00024658,2]
[426299013,1782257454000,-150.0,0.00024658,2]
[426299011,1782257454000,-150.0,0.00024658,2]
[426299010,1782257454000,-150.0,0.00024658,2]
[426299012,1782257454000,-150.0,0.00024658,2]
[426299009,1782257454000,-150.0,0.00024658,2]
[426299005,1782257454000,-150.0,0.00024658,2]
[426299008,1782257454000,-150.0,0.00024658,2]
[426299085,1782257455000,-5260.63529455,0.00024781,7]
[426299093,1782257455000,-178.64205784,0.00025,2]
[426299087,1782257455000,-10005.87988317,0.000248,2]
[426299095,1782257455000,-1819.57891694,0.00025,2]
[426299084,1782257455000,-4888.88543764,0.00024744,2]
[426299079,1782257455000,-150.0,0.00024658,2]
[426299081,1782257455000,-150.0,0.00024658,2]
[426299080,1782257455000,-150.0,0.00024658,2]
[426299077,1782257455000,-150.0,0.00024658,2]
[426299075,1782257455000,-150.0,0.00024658,2]
[426299083,1782257455000,-150.0,0.000247,2]
[426299094,1782257455000,-211.52221516,0.00025,2]
[426299107,1782257455000,-150.0,0.00025,2]
[426299086,1782257455000,-37721.26356545,0.00024781,7]
[426299090,1782257455000,-150.0,0.0002485,2]
[426299089,1782257455000,-631.0,0.00024848,6]
[426299091,1782257455000,-264.93139043,0.000249,2]
[426299088,1782257455000,-11190.86,0.0002482,7]
[426299096,1782257455000,-540.0,0.00025,2]
[426299099,1782257455000,-7265.49077508,0.00025,2]
[426299100,1782257455000,-50000.0,0.00025,10]
[426299098,1782257455000,-3102.46986971,0.00025,2]
[426299097,1782257455000,-622.65147549,0.00025,2]
[426299105,1782257455000,-630.6877681,0.00025,5]
[426299102,1782257455000,-2243.23017917,0.00025,2]
[426299078,1782257455000,-150.0,0.00024658,2]
[426299092,1782257455000,-499.83315559,0.00024977,2]
[426299082,1782257455000,-150.0,0.00024658,2]
[426299063,1782257455000,-150.0,0.00024658,2]
[426299074,1782257455000,-150.0,0.00024658,2]
[426299106,1782257455000,-4885.63578395,0.00025,2]
[426299048,1782257455000,-150.0,0.00024658,2]
[426299049,1782257455000,-645.664511,0.00024658,2]
[426299056,1782257455000,-150.0,0.00024658,2]
[426299054,1782257455000,-645.664511,0.00024658,2]
[426299050,1782257455000,-150.0,0.00024658,2]
[426299060,1782257455000,-150.0,0.00024658,2]
[426299051,1782257455000,-645.664511,0.00024658,2]
[426299052,1782257455000,-645.664511,0.00024658,2]
[426299055,1782257455000,-150.0,0.00024658,2]
[426299057,1782257455000,-150.0,0.00024658,2]
[426299059,1782257455000,-150.0,0.00024658,2]
[426299076,1782257455000,-150.0,0.00024658,2]
[426299053,1782257455000,-150.0,0.00024658,2]
[426299061,1782257455000,-150.0,0.00024658,2]
[426299072,1782257455000,-150.0,0.00024658,2]
[426299064,1782257455000,-150.0,0.00024658,2]
[426299069,1782257455000,-150.0,0.00024658,2]
[426299062,1782257455000,-150.0,0.00024658,2]
[426299065,1782257455000,-150.0,0.00024658,2]
[426299067,1782257455000,-150.0,0.00024658,2]
[426299071,1782257455000,-150.0,0.00024658,2]
[426299068,1782257455000,-150.0,0.00024658,2]
[426299066,1782257455000,-150.0,0.00024658,2]
[426299070,1782257455000,-150.0,0.00024658,2]
[426299073,1782257455000,-150.0,0.00024658,2]
[426299058,1782257455000,-150.0,0.00024658,2]
[426299104,1782257455000,-170.57290139,0.00025,2]
[426299101,1782257455000,-221220.36923255,0.00025,7]
[426299108,1782257455000,-1006.67618899,0.00025,2]
[426299139,1782257455000,-187.792673,0.00025,2]
[426299140,1782257455000,-187.792679,0.00025,2]
[426299141,1782257455000,-151.0,0.00025,2]
[426299143,1782257455000,-290.942729,0.00025,2]
[426299145,1782257455000,-269.249007,0.00025,2]
[426299144,1782257455000,-269.249007,0.00025,2]
[426299142,1782257455000,-151.0,0.00025,2]
[426299148,1782257455000,-645.664511,0.00025,2]
[426299150,1782257455000,-645.664511,0.00025,2]
[426299151,1782257455000,-645.664511,0.00025,2]
[426299146,1782257455000,-269.249007,0.00025,2]
[426299149,1782257455000,-645.664511,0.00025,2]
[426299135,1782257455000,-220.547497,0.00025,2]
[426299152,1782257455000,-174.0,0.00025,7]
[426299157,1782257455000,-440.44,0.00025,2]
[426299154,1782257455000,-440.44,0.00025,2]
[426299147,1782257455000,-269.249007,0.00025,2]
[426299153,1782257455000,-440.44,0.00025,2]
[426299156,1782257455000,-440.44,0.00025,2]
[426299159,1782257455000,-440.44,0.00025,2]
[426299162,1782257455000,-721.12765534,0.00025016,2]
[426299161,1782257455000,-621.78829552,0.00025016,2]
[426299160,1782257455000,-440.44,0.00025,2]
[426299158,1782257455000,-440.44,0.00025,2]
[426299164,1782257455000,-151.0,0.00025018,2]
[426299163,1782257455000,-871.06772465,0.00025018,2]
[426299155,1782257455000,-440.44,0.00025,2]
[426299137,1782257455000,-187.792673,0.00025,2]
[426299165,1782257455000,-280.03725111,0.00025018,2]
[426299136,1782257455000,-187.0,0.00025,2]
[426299103,1782257455000,-3379.98868972,0.00025,2]
[426299120,1782257455000,-310.21789281,0.00025,2]
[426299110,1782257455000,-326.29,0.00025,2]
[426299121,1782257455000,-1379.7031038,0.00025,2]
[426299109,1782257455000,-1569682.83348132,0.00025,2]
[426299112,1782257455000,-50000.0,0.00025,5]
[426299111,1782257455000,-1000.0,0.00025,2]
[426299138,1782257455000,-187.792673,0.00025,2]
[426299114,1782257455000,-10005.87988317,0.00025,2]
[426299113,1782257455000,-216.39158367,0.00025,10]
[426299117,1782257455000,-1848.43926038,0.00025,2]
[426299116,1782257455000,-542.97807811,0.00025,2]
[426299119,1782257455000,-361.01801853,0.00025,2]
[426299115,1782257455000,-439.24752524,0.00025,2]
[426299123,1782257455000,-418.00412977,0.00025,2]
[426299130,1782257455000,-841.12878834,0.00025,2]
[426299118,1782257455000,-2746.02829875,0.00025,2]
[426299128,1782257455000,-151.0,0.00025,2]
[426299127,1782257455000,-1980.06220337,0.00025,2]
[426299129,1782257455000,-151.0,0.00025,2]
[426299133,1782257455000,-220.547498,0.00025,2]
[426299126,1782257455000,-151.0,0.00025,2]
[426299134,1782257455000,-220.547498,0.00025,2]
[426299132,1782257455000,-220.547498,0.00025,2]
[426299124,1782257455000,-151.0,0.00025,2]
[426299125,1782257455000,-151.0,0.00025,2]
[426299122,1782257455000,-419.47364359,0.00025,2]
[426299131,1782257455000,-151.0,0.00025,2]
[426299204,1782257456000,-156.92346404,0.00025399,2]
[426299205,1782257456000,-293.61811527,0.00025399,2]
[426299206,1782257456000,-158.95283853,0.00025399,2]
[426299203,1782257456000,-168.44186657,0.00025399,2]
[426299200,1782257456000,-199.99541127,0.00025389,2]
[426299197,1782257456000,-203.84486829,0.00025389,2]
[426299198,1782257456000,-150.40697644,0.00025389,2]
[426299199,1782257456000,-692.46006228,0.00025389,2]
[426299201,1782257456000,-444.06601972,0.00025397,2]
[426299202,1782257456000,-185.70565137,0.00025399,2]
[426299196,1782257456000,-215.08965049,0.00025389,2]
[426299207,1782257456000,-335.04385712,0.00025399,2]
[426299220,1782257456000,-191.88953814,0.00025399,2]
[426299209,1782257456000,-154.98197297,0.00025399,2]
[426299208,1782257456000,-199.99953643,0.00025399,2]
[426299213,1782257456000,-172.94117848,0.00025399,2]
[426299210,1782257456000,-160.50919451,0.00025399,2]
[426299212,1782257456000,-218.35596824,0.00025399,2]
[426299215,1782257456000,-172.8785797,0.00025399,2]
[426299225,1782257456000,-151.0,0.0002541,2]
[426299222,1782257456000,-186.972758,0.00025399,2]
[426299216,1782257456000,-153.19464192,0.00025399,2]
[426299221,1782257456000,-216.51007784,0.00025399,2]
[426299214,1782257456000,-192.51441698,0.00025399,2]
[426299192,1782257456000,-178.546956,0.00025386,2]
[426299211,1782257456000,-286.84617592,0.00025399,2]
[426299193,1782257456000,-168.50398799,0.00025386,2]
[426299178,1782257456000,-10005.87988317,0.000253,2]